fUSD/lending_fUSD_20240429
["ID","MTS","AMOUNT","RATE_DAILY","PERIOD"]
[324904192,1714405845759,-1041.28,0.00012314,2]
[324904193,1714405845768,-534.92,0.00012314,2]
[324904194,1714405845779,-500.0,0.00012314,2]
[324904195,1714405845788,-7382.21959142,0.00012315,2]
[324904196,1714405845801,-266616.70240014,0.00012315,2]
[324904225,1714406123366,308.19,9.291e-05,2]
[324904230,1714406431356,150.0,0.0001928,120]
[324904234,1714406490796,150.0,0.00021739,120]
[324904235,1714406550851,150.0,0.00024761,120]
[324904236,1714406648492,292.78,8.516e-05,2]
[324904237,1714406670990,150.0,0.00024556,120]
[324904239,1714406790862,150.0,0.0002421,120]
[324904248,1714406850943,150.0,0.0002434,120]
[324904270,1714407030937,150.0,0.00024858,120]
[324904284,1714407031687,-284.1080006,9.975e-05,2]
[324904285,1714407031700,-1068.28892115,9.975e-05,2]
[324904286,1714407031720,-1075.16746446,9.976e-05,2]
[324904287,1714407031741,-3259.72218527,9.976e-05,2]
[324904288,1714407031751,-524.29702054,9.976e-05,2]
[324904289,1714407031760,-150.0,9.979e-05,2]
[324904290,1714407031770,-345.54,0.00010366,2]
[324904291,1714407031780,-3532.08,0.00010383,2]
[324904292,1714407031790,-173.13,0.0001039,2]
[324904293,1714407031800,-249.55,0.00010391,2]
[324904294,1714407031810,-1005.68079419,0.00010411,2]
[324904295,1714407031824,-508.46920581,0.00010411,2]
[324904296,1714407031833,-200.0,0.00010422,2]
[324904297,1714407031843,-1908.08,0.00010422,4]
[324904298,1714407031853,-250.0,0.00010432,2]
[324904299,1714407031863,-1573.65,0.00010432,2]
[324904300,1714407031872,-627.25,0.00010453,2]
[324904301,1714407031882,-466.5,0.0001047,2]
[324904302,1714407031892,-307.14,0.00010474,2]
[324904303,1714407031901,-2125.33,0.00010474,2]
[324904304,1714407031911,-152.16,0.00010734,2]
[324904305,1714407031921,-152.16,0.00010769,2]
[324904306,1714407031930,-292.78,0.0001078,2]
[324904307,1714407031940,-152.16,0.00010804,2]
[324904308,1714407031949,-152.16,0.00010839,2]
[324904310,1714407031959,-152.16,0.00010874,2]
[324904334,1714407032175,-152.16,0.00010909,2]
[324904337,1714407032197,-152.16,0.00010944,2]
[324904339,1714407032206,-150.0,0.00010959,2]
[324904341,1714407032216,-150.0,0.00010959,2]
[324904343,1714407032226,-859.54,0.00010959,3]
[324904345,1714407032235,-210.0,0.00010977,2]
[324904347,1714407032244,-152.16,0.00010979,2]
[324904349,1714407032253,-9529.59999999,0.00011,2]
[324904350,1714407032262,-2450.0,0.00011,3]
[324904352,1714407032272,-152.16,0.00011014,2]
[324904353,1714407032281,-152.16,0.00011048,2]
[324904354,1714407032290,-152.16,0.00011083,2]
[324904355,1714407032300,-152.16,0.00011118,2]
[324904356,1714407032309,-152.16,0.00011153,2]
[324904357,1714407032319,-152.16,0.00011188,2]
[324904358,1714407032328,-152.16,0.00011223,2]
[324904359,1714407032337,-152.16,0.00011258,2]
[324904360,1714407032346,-152.16,0.00011293,2]
[324904361,1714407032356,-299.99,0.00011354,2]
[324904362,1714407032366,-1268.52,0.00011354,2]
[324904363,1714407032375,-164.65,0.00011541,2]
[324904364,1714407032385,-164.65,0.00011555,2]
[324904365,1714407032394,-164.65,0.0001157,2]
[324904366,1714407032403,-164.65,0.00011584,2]
[324904367,1714407032413,-164.65,0.00011599,2]
[324904368,1714407032422,-345.54,0.00011661,2]
[324904369,1714407032431,-466.5,0.00011778,2]
[324904370,1714407032440,-307.14,0.00011784,2]
[324904371,1714407032449,-5794.18907676,0.00012141,2]
[324904372,1714407032475,-103.81092324,0.00012141,2]
[324904373,1714407032484,-153.39907676,0.00012141,2]
[324904374,1714407032496,-5581.60092324,0.00012141,2]
[324904375,1714407032505,-37732.0,0.00012141,2]
[324904376,1714407032515,-2291.0,0.00012141,2]
[324904377,1714407032526,-1056.0,0.00012141,2]
[324904378,1714407032536,-3000.0,0.0001219,2]
[324904379,1714407032545,-162.13995329,0.00012204,2]
[324904380,1714407032555,-201.41139642,0.00012213,2]
[324904381,1714407032566,-263.2518,0.00012214,2]
[324904382,1714407032575,-40034.4948,0.00012214,2]
[324904383,1714407032584,-10375.8293,0.00012214,2]
[324904384,1714407032593,-370.0423,0.00012214,2]
[324904385,1714407032602,-4238.2775,0.00012214,2]
[324904386,1714407032612,-10000.0,0.00012214,2]
[324904387,1714407032621,-179.34240057,0.00012214,2]
[324904388,1714407032630,-162.13995329,0.00012294,2]
[324904389,1714407032640,-592.0,0.00012301,2]
[324904390,1714407032649,-162.13995329,0.00012302,2]
[324904391,1714407032658,-162.13995329,0.00012302,2]
[324904392,1714407032667,-162.13995329,0.00012302,2]
[324904393,1714407032677,-162.13995329,0.00012302,2]
[324904394,1714407032686,-162.13995329,0.00012303,2]
[324904395,1714407032696,-162.13995329,0.00012303,2]
[324904396,1714407032707,-162.13995329,0.00012303,2]
[324904397,1714407032716,-162.13995329,0.00012303,2]
[324904398,1714407032726,-841.0834819,0.00012303,2]
[324904399,1714407032735,-4204.4934299,0.00012303,2]
[324904400,1714407032745,-4795.3952093,0.00012304,2]
[324904401,1714407032754,-959.2898091,0.00012306,2]
[324904402,1714407032763,-5386.2969886,0.00012306,2]
[324904403,1714407032773,-255.42801713,0.00012311,2]
[324904404,1714407032782,-287.48806019,0.00012311,2]
[324904405,1714407032793,-197.96064102,0.00012311,2]
[324904406,1714407032803,-155.1808917,0.00012312,2]
[324904407,1714407032812,-1000.3768,0.00012312,2]
[324904408,1714407032823,-1002.7,0.00012312,2]
[324904409,1714407032832,-901.03,0.00012312,2]
[324904410,1714407032842,-5649.51,0.00012312,2]
[324904411,1714407032851,-500.0,0.00012312,2]
[324904412,1714407032860,-834.73,0.00012312,2]
[324904413,1714407032870,-1093.61,0.00012312,2]
[324904414,1714407032880,-659.81,0.00012312,2]
[324904415,1714407032889,-987.34,0.00012312,2]
[324904416,1714407032898,-749.03,0.00012312,2]
[324904417,1714407032907,-500.0,0.00012312,2]
[324904418,1714407032917,-500.0,0.00012312,2]
[324904419,1714407032927,-500.0,0.00012312,2]
[324904420,1714407032936,-500.0,0.00012312,2]
[324904421,1714407032946,-1202.59,0.00012312,2]
[324904422,1714407032955,-539.12,0.00012312,2]
[324904423,1714407032965,-765.56,0.00012312,2]
[324904424,1714407032974,-500.0,0.00012312,2]
[324904425,1714407032984,-819.6,0.00012312,2]
[324904426,1714407032993,-500.0,0.00012312,2]
[324904427,1714407033002,-1810.26,0.00012312,2]
[324904428,1714407033011,-566.14,0.00012312,2]
[324904429,1714407033020,-500.0,0.00012312,2]
[324904430,1714407033031,-500.0,0.00012312,2]
[324904431,1714407033044,-1017.09,0.00012312,2]
[324904432,1714407033053,-658.85,0.00012312,2]
[324904433,1714407033062,-500.0,0.00012312,2]
[324904434,1714407033074,-500.0,0.00012312,2]
[324904435,1714407033083,-500.0,0.00012312,2]
[324904436,1714407033092,-500.0,0.00012312,2]
[324904437,1714407033101,-1100.63,0.00012312,2]
[324904438,1714407033111,-832.74,0.00012312,2]
[324904439,1714407033121,-3236.62,0.00012312,2]
[324904440,1714407033130,-500.0,0.00012312,2]
[324904441,1714407033139,-500.0,0.00012312,2]
[324904442,1714407033148,-1301.64,0.00012312,2]
[324904443,1714407033158,-958.55,0.00012312,2]
[324904444,1714407033166,-1054.71,0.00012312,2]
[324904445,1714407033175,-1306.47,0.00012312,2]
[324904446,1714407033184,-877.72,0.00012312,2]
[324904447,1714407033193,-500.0,0.00012312,2]
[324904448,1714407033203,-903.41,0.00012312,2]
[324904449,1714407033212,-839.8,0.00012312,2]
[324904450,1714407033221,-1246.18,0.00012312,2]
[324904451,1714407033230,-500.0,0.00012312,2]
[324904452,1714407033239,-564.91,0.00012312,2]
[324904453,1714407033249,-832.73,0.00012312,2]
[324904454,1714407033258,-500.0,0.00012312,2]
[324904455,1714407033267,-1377.6,0.00012312,2]
[324904456,1714407033276,-1078.1,0.00012312,2]
[324904457,1714407033285,-764.41,0.00012312,2]
[324904458,1714407033294,-898.64,0.00012312,2]
[324904459,1714407033303,-500.0,0.00012312,2]
[324904460,1714407033312,-658.09,0.00012312,2]
[324904461,1714407033326,-919.3,0.00012312,2]
[324904462,1714407033335,-1652.49,0.00012312,2]
[324904463,1714407033344,-500.0,0.00012312,2]
[324904464,1714407033353,-596.83,0.00012312,2]
[324904465,1714407033362,-841.0,0.00012312,2]
[324904466,1714407033372,-500.0,0.00012312,2]
[324904467,1714407033381,-500.0,0.00012312,2]
[324904468,1714407033390,-500.0,0.00012312,2]
[324904469,1714407033399,-500.0,0.00012312,2]
[324904470,1714407033409,-532.21,0.00012312,2]
[324904471,1714407033418,-500.0,0.00012312,2]
[324904472,1714407033427,-500.0,0.00012312,2]
[324904473,1714407033436,-2563.34,0.00012312,2]
[324904474,1714407033445,-500.0,0.00012312,2]
[324904475,1714407033454,-959.87,0.00012312,2]
[324904476,1714407033463,-500.0,0.00012312,2]
[324904477,1714407033472,-500.0,0.00012312,2]
[324904478,1714407033482,-2679.75,0.00012312,2]
[324904479,1714407033491,-518.08,0.00012312,2]
[324904480,1714407033500,-997.79,0.00012312,2]
[324904481,1714407033509,-837.29,0.00012312,2]
[324904482,1714407033518,-500.0,0.00012312,2]
[324904483,1714407033528,-621.95932919,0.00012313,2]
[324904484,1714407033537,-500.0,0.00012313,2]
[324904485,1714407033546,-500.0,0.00012313,2]
[324904486,1714407033556,-505.24948911,0.00012313,2]
[324904487,1714407033565,-500.0,0.00012313,2]
[324904488,1714407033576,-500.0,0.00012313,2]
[324904489,1714407033586,-501.3114509,0.00012313,2]
[324904490,1714407033595,-500.0,0.00012313,2]
[324904491,1714407033604,-500.0,0.00012313,2]
[324904492,1714407033614,-500.0,0.00012313,2]
[324904493,1714407033623,-500.0,0.00012313,2]
[324904494,1714407033632,-500.0,0.00012313,2]
[324904495,1714407033642,-500.0,0.00012313,2]
[324904496,1714407033651,-501.82650526,0.00012313,2]
[324904497,1714407033660,-500.0,0.00012313,2]
[324904498,1714407033669,-500.0,0.00012313,2]
[324904499,1714407033679,-500.0,0.00012313,2]
[324904500,1714407033688,-500.0,0.00012313,2]
[324904501,1714407033697,-500.0,0.00012313,2]
[324904502,1714407033706,-500.0,0.00012313,2]
[324904503,1714407033716,-501.24780732,0.00012313,2]
[324904504,1714407033725,-500.0,0.00012313,2]
[324904505,1714407033734,-500.0,0.00012313,2]
[324904506,1714407033744,-500.0,0.00012313,2]
[324904507,1714407033753,-500.0,0.00012313,2]
[324904508,1714407033762,-500.0,0.00012313,2]
[324904509,1714407033771,-500.0,0.00012313,2]
[324904510,1714407033781,-500.0,0.00012313,2]
[324904511,1714407033790,-500.0,0.00012313,2]
[324904512,1714407033799,-500.0,0.00012313,2]
[324904513,1714407033809,-500.0,0.00012313,2]
[324904514,1714407033820,-500.0,0.00012313,2]
[324904515,1714407033829,-500.0,0.00012313,2]
[324904516,1714407033839,-500.0,0.00012313,2]
[324904517,1714407033848,-500.0,0.00012313,2]
[324904518,1714407033857,-501.66316695,0.00012313,2]
[324904519,1714407033867,-500.0,0.00012313,2]
[324904520,1714407033876,-500.0,0.00012313,2]
[324904521,1714407033885,-500.0,0.00012313,2]
[324904522,1714407033895,-500.0,0.00012313,2]
[324904523,1714407033905,-500.0,0.00012313,2]
[324904524,1714407033914,-500.0,0.00012313,2]
[324904525,1714407033924,-500.0,0.00012313,2]
[324904526,1714407033933,-500.0,0.00012313,2]
[324904527,1714407033943,-500.0,0.00012313,2]
[324904528,1714407033952,-500.0,0.00012313,2]
[324904529,1714407033961,-500.0,0.00012313,2]
[324904530,1714407033970,-500.0,0.00012313,2]
[324904531,1714407033979,-500.0,0.00012313,2]
[324904532,1714407033988,-500.0,0.00012313,2]
[324904533,1714407033998,-500.0,0.00012313,2]
[324904534,1714407034007,-501.8563337,0.00012313,2]
[324904535,1714407034017,-500.0,0.00012313,2]
[324904536,1714407034028,-500.0,0.00012313,2]
[324904537,1714407034044,-500.0,0.00012313,2]
[324904538,1714407034054,-645.09718501,0.00012313,2]
[324904539,1714407034064,-500.8718557,0.00012313,2]
[324904540,1714407034075,-500.0,0.00012313,2]
[324904541,1714407034084,-500.0,0.00012313,2]
[324904542,1714407034094,-500.0,0.00012313,2]
[324904543,1714407034103,-500.0,0.00012313,2]
[324904544,1714407034112,-500.0,0.00012313,2]
[324904545,1714407034123,-500.0,0.00012313,2]
[324904546,1714407034132,-500.0,0.00012313,2]
[324904547,1714407034141,-500.0,0.00012313,2]
[324904548,1714407034151,-500.0,0.00012313,2]
[324904549,1714407034160,-599.35,0.00012313,2]
[324904550,1714407034170,-500.0,0.00012313,2]
[324904551,1714407034179,-500.0,0.00012313,2]
[324904552,1714407034188,-500.0,0.00012313,2]
[324904553,1714407034198,-500.0,0.00012313,2]
[324904554,1714407034207,-500.0,0.00012313,2]
[324904555,1714407034218,-500.0,0.00012313,2]
[324904556,1714407034227,-500.0,0.00012313,2]
[324904557,1714407034236,-500.0,0.00012313,2]
[324904558,1714407034246,-500.0,0.00012313,2]
[324904559,1714407034255,-500.0,0.00012313,2]
[324904560,1714407034265,-701.9,0.00012313,2]
[324904561,1714407034274,-500.0,0.00012313,2]
[324904562,1714407034283,-500.0,0.00012313,2]
[324904563,1714407034291,-575.92,0.00012313,2]
[324904564,1714407034301,-345.58316575,0.00012313,2]
[324904565,1714407034310,-500.0,0.00012313,2]
[324904566,1714407034323,-500.0,0.00012313,2]
[324904567,1714407034332,-500.0,0.00012313,2]
[324904568,1714407034341,-500.0,0.00012313,2]
[324904569,1714407034350,-500.0,0.00012313,2]
[324904570,1714407034359,-500.0,0.00012313,2]
[324904571,1714407034370,-728.07,0.00012313,2]
[324904572,1714407034379,-500.0,0.00012313,2]
[324904573,1714407034388,-500.0,0.00012313,2]
[324904574,1714407034397,-500.0,0.00012313,2]
[324904575,1714407034406,-500.0,0.00012313,2]
[324904576,1714407034415,-501.809588,0.00012313,2]
[324904577,1714407034424,-500.0,0.00012313,2]
[324904578,1714407034433,-500.0,0.00012313,2]
[324904579,1714407034442,-500.0,0.00012313,2]
[324904580,1714407034451,-500.0,0.00012313,2]
[324904581,1714407034460,-500.0,0.00012313,2]
[324904582,1714407034470,-500.0,0.00012313,2]
[324904583,1714407034479,-500.0,0.00012313,2]
[324904584,1714407034489,-500.0,0.00012313,2]
[324904585,1714407034498,-500.0,0.00012313,2]
[324904586,1714407034507,-500.0,0.00012313,2]
[324904587,1714407034516,-533.75,0.00012313,2]
[324904588,1714407034526,-500.0,0.00012313,2]
[324904589,1714407034535,-500.0,0.00012313,2]
[324904590,1714407034545,-500.0,0.00012313,2]
[324904591,1714407034674,-500.0,0.00012313,2]
[324904592,1714407034701,-500.0,0.00012313,2]
[324904593,1714407034710,-500.0,0.00012313,2]
[324904594,1714407034719,-500.0,0.00012313,2]
[324904595,1714407034729,-500.0,0.00012313,2]
[324904596,1714407034738,-500.0,0.00012313,2]
[324904597,1714407034747,-500.0,0.00012313,2]
[324904598,1714407034756,-500.0,0.00012313,2]
[324904599,1714407034765,-500.0,0.00012313,2]
[324904600,1714407034775,-500.0,0.00012313,2]
[324904601,1714407034783,-500.0,0.00012313,2]
[324904602,1714407034793,-500.0,0.00012313,2]
[324904603,1714407034802,-420.27308335,0.00012313,2]
[324904604,1714407034811,-500.0,0.00012313,2]
[324904605,1714407034822,-500.0,0.00012313,2]
[324904606,1714407034831,-500.0,0.00012313,2]
[324904607,1714407034841,-500.0,0.00012313,2]
[324904608,1714407034850,-500.0,0.00012313,2]
[324904609,1714407034859,-500.0,0.00012313,2]
[324904610,1714407034868,-500.0,0.00012313,2]
[324904611,1714407034877,-504.84124594,0.00012313,2]
[324904612,1714407034887,-500.0,0.00012313,2]
[324904613,1714407034896,-500.0,0.00012313,2]
[324904614,1714407034905,-500.0,0.00012313,2]
[324904615,1714407034914,-500.0,0.00012313,2]
[324904616,1714407034923,-500.0,0.00012313,2]
[324904617,1714407034933,-500.0,0.00012313,2]
[324904618,1714407034942,-500.0,0.00012313,2]
[324904619,1714407034950,-500.0,0.00012313,2]
[324904620,1714407034959,-500.0,0.00012313,2]
[324904621,1714407034969,-500.0,0.00012313,2]
[324904622,1714407034978,-500.0,0.00012313,2]
[324904623,1714407034987,-500.0,0.00012313,2]
[324904624,1714407034996,-500.0,0.00012313,2]
[324904625,1714407035005,-500.0,0.00012313,2]
[324904626,1714407035016,-500.0,0.00012313,2]
[324904627,1714407035026,-500.0,0.00012313,2]
[324904628,1714407035040,-500.0,0.00012313,2]
[324904629,1714407035050,-500.0,0.00012313,2]
[324904630,1714407035059,-500.0,0.00012313,2]
[324904631,1714407035068,-500.0,0.00012313,2]
[324904632,1714407035078,-500.0,0.00012313,2]
[324904633,1714407035088,-500.0,0.00012313,2]
[324904634,1714407035097,-500.0,0.00012313,2]
[324904635,1714407035106,-500.0,0.00012313,2]
[324904636,1714407035115,-500.0,0.00012313,2]
[324904637,1714407035125,-500.0,0.00012313,2]
[324904638,1714407035135,-500.0,0.00012313,2]
[324904639,1714407035145,-500.0,0.00012313,2]
[324904640,1714407035154,-500.0,0.00012313,2]
[324904641,1714407035164,-500.0,0.00012313,2]
[324904642,1714407035174,-500.0,0.00012313,2]
[324904643,1714407035184,-500.0,0.00012313,2]
[324904644,1714407035195,-500.0,0.00012313,2]
[324904645,1714407035205,-500.0,0.00012313,2]
[324904646,1714407035215,-500.0,0.00012313,2]
[324904647,1714407035225,-503.49139489,0.00012313,2]
[324904648,1714407035235,-500.0,0.00012313,2]
[324904649,1714407035244,-505.62263145,0.00012313,2]
[324904650,1714407035255,-500.0,0.00012313,2]
[324904651,1714407035265,-500.0,0.00012313,2]
[324904652,1714407035274,-500.0,0.00012313,2]
[324904653,1714407035284,-507.21906477,0.00012313,2]
[324904654,1714407035294,-500.0,0.00012313,2]
[324904655,1714407035303,-500.0,0.00012313,2]
[324904656,1714407035313,-500.0,0.00012313,2]
[324904657,1714407035323,-500.0,0.00012313,2]
[324904658,1714407035332,-500.0,0.00012313,2]
[324904659,1714407035341,-500.0,0.00012313,2]
[324904660,1714407035351,-500.0,0.00012313,2]
[324904661,1714407035360,-500.0,0.00012313,2]
[324904662,1714407035369,-500.0,0.00012313,2]
[324904663,1714407035379,-500.0,0.00012313,2]
[324904664,1714407035388,-500.0,0.00012313,2]
[324904665,1714407035397,-500.0,0.00012313,2]
[324904666,1714407035407,-500.0,0.00012313,2]
[324904667,1714407035416,-500.0,0.00012313,2]
[324904668,1714407035426,-500.0,0.00012313,2]
[324904669,1714407035435,-500.0,0.00012313,2]
[324904670,1714407035445,-500.0,0.00012313,2]
[324904671,1714407035454,-500.0,0.00012313,2]
[324904672,1714407035463,-500.0,0.00012313,2]
[324904673,1714407035472,-150.0,0.00012313,2]
[324904674,1714407035481,-500.0,0.00012313,2]
[324904675,1714407035492,-510.62000374,0.00012313,2]
[324904676,1714407035502,-500.0,0.00012313,2]
[324904677,1714407035511,-500.0,0.00012313,2]
[324904678,1714407035520,-502.55764571,0.00012313,2]
[324904679,1714407035530,-500.0,0.00012313,2]
[324904680,1714407035540,-500.0,0.00012313,2]
[324904681,1714407035549,-5000.0,0.00012313,2]
[324904682,1714407035559,-500.0,0.00012313,2]
[324904683,1714407035569,-208.30620516,0.00012313,2]
[324904684,1714407035578,-470.0,0.00012313,2]
[324904685,1714407035587,-500.0,0.00012313,2]
[324904686,1714407035597,-501.09198563,0.00012313,2]
[324904687,1714407035606,-500.0,0.00012313,2]
[324904688,1714407035616,-500.0,0.00012313,2]
[324904689,1714407035626,-499.45562817,0.00012313,2]
[324904690,1714407035635,-500.0,0.00012313,2]
[324904691,1714407035645,-500.0,0.00012313,2]
[324904692,1714407035655,-500.0,0.00012313,2]
[324904693,1714407035664,-500.0,0.00012313,2]
[324904694,1714407035674,-500.0,0.00012313,2]
[324904695,1714407035684,-500.0,0.00012313,2]
[324904696,1714407035694,-500.95749824,0.00012313,2]
[324904697,1714407035703,-500.0,0.00012313,2]
[324904698,1714407035712,-500.0,0.00012313,2]
[324904699,1714407035722,-500.0,0.00012313,2]
[324904700,1714407035731,-500.0,0.00012313,2]
[324904701,1714407035741,-500.0,0.00012313,2]
[324904702,1714407035751,-500.0,0.00012313,2]
[324904703,1714407035760,-503.22400685,0.00012313,2]
[324904704,1714407035769,-500.0,0.00012313,2]
[324904705,1714407035779,-500.0,0.00012313,2]
[324904706,1714407035789,-500.0,0.00012313,2]
[324904707,1714407035799,-500.0,0.00012313,2]
[324904708,1714407035808,-500.0,0.00012313,2]
[324904709,1714407035819,-500.0,0.00012313,2]
[324904710,1714407035828,-503.63610716,0.00012313,2]
[324904711,1714407035838,-500.0,0.00012313,2]
[324904712,1714407035847,-500.0,0.00012313,2]
[324904713,1714407035856,-500.0,0.00012313,2]
[324904714,1714407035865,-500.0,0.00012313,2]
[324904715,1714407035875,-500.0,0.00012313,2]
[324904716,1714407035883,-500.0,0.00012313,2]
[324904717,1714407035893,-500.0,0.00012313,2]
[324904718,1714407035902,-500.0,0.00012313,2]
[324904719,1714407035911,-500.0,0.00012313,2]
[324904720,1714407035920,-500.0,0.00012313,2]
[324904721,1714407035930,-500.0,0.00012313,2]
[324904722,1714407035939,-500.0,0.00012313,2]
[324904723,1714407035948,-500.0,0.00012313,2]
[324904724,1714407035958,-500.0,0.00012313,2]
[324904725,1714407035967,-500.0,0.00012313,2]
[324904726,1714407035976,-500.0,0.00012313,2]
[324904727,1714407035985,-500.0,0.00012313,2]
[324904728,1714407035996,-500.0,0.00012313,2]
[324904729,1714407036005,-500.0,0.00012313,2]
[324904730,1714407036014,-500.0,0.00012313,2]
[324904731,1714407036024,-1158.5,0.00012313,2]
[324904732,1714407036034,-500.0,0.00012313,2]
[324904733,1714407036045,-500.0,0.00012313,2]
[324904734,1714407036055,-588.75,0.00012313,2]
[324904735,1714407036063,-500.0,0.00012313,2]
[324904736,1714407036073,-500.0,0.00012313,2]
[324904737,1714407036083,-502.05731684,0.00012313,2]
[324904738,1714407036092,-500.0,0.00012313,2]
[324904739,1714407036101,-500.0,0.00012313,2]
[324904740,1714407036110,-500.0,0.00012313,2]
[324904741,1714407036119,-502.58248868,0.00012313,2]
[324904742,1714407036130,-500.0,0.00012313,2]
[324904743,1714407036140,-500.0,0.00012313,2]
[324904744,1714407036150,-500.0,0.00012313,2]
[324904745,1714407036160,-500.0,0.00012313,2]
[324904746,1714407036169,-330.22326172,0.00012313,2]
[324904747,1714407036178,-500.0,0.00012313,2]
[324904748,1714407036187,-500.0,0.00012313,2]
[324904749,1714407036196,-500.0,0.00012313,2]
[324904750,1714407036205,-500.0,0.00012313,2]
[324904751,1714407036214,-500.0,0.00012313,2]
[324904752,1714407036224,-500.0,0.00012313,2]
[324904753,1714407036233,-500.0,0.00012313,2]
[324904754,1714407036243,-500.0,0.00012313,2]
[324904755,1714407036252,-503.60654672,0.00012313,2]
[324904756,1714407036261,-500.0,0.00012313,2]
[324904757,1714407036271,-500.0,0.00012313,2]
[324904758,1714407036281,-500.0,0.00012313,2]
[324904759,1714407036290,-500.0,0.00012313,2]
[324904760,1714407036300,-500.0,0.00012313,2]
[324904761,1714407036309,-501.32561976,0.00012313,2]
[324904762,1714407036319,-632.76,0.00012313,2]
[324904763,1714407036329,-500.0,0.00012313,2]
[324904764,1714407036339,-500.0,0.00012313,2]
[324904765,1714407036348,-500.0,0.00012313,2]
[324904766,1714407036358,-500.0,0.00012313,2]
[324904767,1714407036367,-500.0,0.00012313,2]
[324904768,1714407036376,-500.0,0.00012313,2]
[324904769,1714407036386,-500.0,0.00012313,2]
[324904770,1714407036395,-1000.0,0.00012313,2]
[324904771,1714407036404,-500.0,0.00012313,2]
[324904772,1714407036414,-500.0,0.00012313,2]
[324904773,1714407036423,-500.0,0.00012313,2]
[324904774,1714407036433,-500.0,0.00012313,2]
[324904775,1714407036443,-500.0,0.00012313,2]
[324904776,1714407036452,-989.11,0.00012313,2]
[324904777,1714407036461,-500.0,0.00012313,2]
[324904778,1714407036471,-502.2709075,0.00012313,2]
[324904779,1714407036480,-500.0,0.00012313,2]
[324904780,1714407036490,-500.0,0.00012313,2]
[324904781,1714407036499,-500.0,0.00012313,2]
[324904782,1714407036510,-500.0,0.00012313,2]
[324904783,1714407036519,-500.0,0.00012313,2]
[324904784,1714407036528,-500.0,0.00012313,2]
[324904785,1714407036538,-500.0,0.00012313,2]
[324904786,1714407036548,-506.63,0.00012313,2]
[324904787,1714407036557,-500.0,0.00012313,2]
[324904788,1714407036566,-530.42,0.00012313,2]
[324904789,1714407036577,-500.0,0.00012313,2]
[324904790,1714407036587,-500.0,0.00012313,2]
[324904791,1714407036597,-500.0,0.00012313,2]
[324904792,1714407036606,-500.0,0.00012313,2]
[324904793,1714407036616,-500.0,0.00012313,2]
[324904794,1714407036625,-500.0,0.00012313,2]
[324904795,1714407036634,-500.0,0.00012313,2]
[324904796,1714407036643,-500.0,0.00012313,2]
[324904797,1714407036653,-500.0,0.00012313,2]
[324904798,1714407036662,-500.0,0.00012313,2]
[324904799,1714407036671,-500.0,0.00012313,2]
[324904800,1714407036680,-352.25,0.00012313,2]
[324904801,1714407036690,-500.0,0.00012313,2]
[324904802,1714407036700,-500.0,0.00012313,2]